bitfinex-derivatives/quotes_BNBF0:USTF0_20250521
["timestamp","ask_amount","ask_price","bid_price","bid_amount"]
[1747819447948,1.022,651.58,650.54,1.79213592]
[1747819448152,1.022,651.58,650.55,0.6214071]
[1747819448352,1.022,651.58,650.56,0.6214071]
[1747819448549,1.022,651.58,650.57,0.6214071]
[1747819448753,1.022,651.58,650.58,0.6214071]
[1747819449052,1.022,651.58,650.56,0.59352911]
[1747819449256,1.022,651.58,650.57,0.62169481]
[1747819449450,1.022,651.58,650.58,0.62169481]
[1747819449653,1.022,651.58,650.56,0.59352911]
[1747819449854,1.022,651.58,650.57,0.62167283]
[1747819450053,1.022,651.58,650.58,0.62167283]
[1747819450251,1.022,651.58,650.59,0.59352911]
[1747819452257,1.022,651.58,650.44,0.61848559]
[1747819452258,1.022,651.58,650.45,0.59352911]
[1747819452458,1.022,651.58,650.46,0.62161857]
[1747819452657,1.022,651.58,650.47,0.62161857]
[1747819452858,1.022,651.58,650.48,0.62161857]
[1747819453054,1.022,651.58,650.46,1.16929806]
[1747819453055,1.022,651.58,650.49,0.62161559]
[1747819453358,1.022,651.58,650.5,2.38444276]
[1747819453556,1.022,651.58,650.51,1.79091365]
[1747819453758,1.022,651.58,650.52,0.62161559]
[1747819453965,1.022,651.58,650.53,0.62161559]
[1747819454267,1.022,651.58,650.54,0.62161559]
[1747819454566,1.022,651.58,650.55,0.62161559]
[1747819454771,1.022,651.58,650.56,0.62160214]
[1747819454966,1.022,651.58,650.5,0.59352911]
[1747819455167,1.022,651.58,650.56,0.59352911]
[1747819455568,1.022,651.58,650.57,0.62159858]
[1747819455770,1.022,651.58,650.56,0.59352911]
[1747819456170,1.022,651.58,650.57,0.62159996]
[1747819456365,1.022,651.58,650.56,0.59352911]
[1747819456366,1.022,651.58,650.58,0.59352911]
[1747819458270,1.022,651.58,650.45,0.59352911]
[1747819458473,1.022,651.58,650.46,1.79199057]
[1747819458673,1.022,651.58,650.47,1.79199057]
[1747819458874,1.022,651.58,650.48,0.62158715]
[1747819459175,1.022,651.58,650.49,1.79199057]
[1747819459376,1.022,651.58,650.5,1.79199057]
[1747819459575,1.022,651.58,650.51,1.21511626]
[1747819459774,1.022,651.58,650.52,1.79199057]
[1747819459976,1.022,651.58,650.53,0.62158715]
[1747819460170,1.022,651.58,650.54,0.62158715]
[1747819460469,1.022,651.58,650.55,0.62158715]
[1747819460674,1.022,651.58,650.56,0.62158715]
[1747819460871,1.022,651.58,650.51,0.59352911]
[1747819461073,1.022,651.58,650.56,0.59352911]
[1747819461271,1.022,651.58,650.57,0.62158091]
[1747819461474,1.022,651.58,650.56,0.59352911]
[1747819461677,1.022,651.58,650.57,0.62158227]
[1747819461869,1.022,651.58,650.58,0.62158227]
[1747819462074,1.022,651.58,650.59,0.62158227]
[1747819462275,1.022,651.58,650.6,0.62158227]
[1747819462476,1.022,651.58,650.56,0.59352911]
[1747819462775,1.022,651.58,650.61,0.59352911]
[1747819464080,1.022,651.58,650.45,1.23463491]
[1747819464277,1.022,651.58,650.46,1.79118771]
[1747819464579,1.022,651.58,650.47,0.62142439]
[1747819464879,1.022,651.58,650.48,1.79118771]
[1747819465076,1.022,651.58,650.48,1.16976332]
[1747819465275,1.022,651.58,650.49,0.62139856]
[1747819465477,1.022,651.58,650.5,0.62139856]
[1747819465675,1.022,651.58,650.51,0.62139856]
[1747819465878,1.022,651.58,650.52,1.79116188]
[1747819466081,1.022,651.58,650.53,0.62139856]
[1747819466279,1.022,651.58,650.54,1.79116188]
[1747819466579,1.022,651.58,650.55,0.62139856]
[1747819466777,1.022,651.58,650.56,1.79116188]
[1747819466980,1.022,651.58,650.57,0.62139856]
[1747819467182,1.022,651.58,650.58,0.62139856]
[1747819467378,1.022,651.58,650.59,0.62139856]
[1747819467579,1.022,651.58,650.58,0.59352911]
[1747819467883,1.022,651.58,650.59,0.62133133]
[1747819468083,1.022,651.58,650.58,0.59352911]
[1747819468383,1.022,651.58,650.45,0.59352911]
[1747819468585,1.022,651.58,650.46,1.79096543]
[1747819468780,1.022,651.58,650.47,0.62132091]
[1747819468980,1.022,651.58,650.48,0.62132091]
[1747819469284,1.022,651.58,650.49,1.16964452]
[1747819469482,1.022,651.58,650.5,0.62132091]
[1747819469678,1.022,651.58,650.51,0.62132091]
[1747819469879,1.022,651.58,650.52,1.79096543]
[1747819470184,1.022,651.58,650.53,1.79096543]
[1747819470379,1.022,651.58,650.54,0.62132091]
[1747819470581,1.022,651.58,650.55,0.62132091]
[1747819470781,1.022,651.58,650.56,0.62132091]
[1747819470985,1.022,651.58,650.57,0.62132091]
[1747819471181,1.022,651.58,650.58,1.21485002]
[1747819471381,1.022,651.58,650.58,0.59352911]
[1747819472891,1.022,651.58,650.45,0.59352911]
[1747819473090,1.022,651.58,650.46,1.79086124]
[1747819473391,1.022,651.58,650.47,0.62130701]
[1747819473592,1.022,651.58,650.48,1.79086124]
[1747819473891,1.022,651.58,650.49,1.21483612]
[1747819474091,1.022,651.58,650.5,1.79086124]
[1747819474394,1.022,651.58,650.51,1.79086124]
[1747819474589,1.022,651.58,650.52,0.62130701]
[1747819474790,1.022,651.58,650.53,0.62130701]
[1747819474987,1.022,651.58,650.54,1.79086124]
[1747819475186,1.022,651.58,650.55,0.62130701]
[1747819475391,1.022,651.58,650.56,0.62130701]
[1747819475590,1.022,651.58,650.57,0.62130701]
[1747819475786,1.022,651.58,650.53,0.59352911]
[1747819475787,1.022,651.58,650.58,0.62130701]
[1747819475991,1.022,651.58,650.53,0.59352911]
[1747819476191,1.022,651.58,650.54,0.62129227]
[1747819476387,1.022,651.58,650.55,0.62129227]
[1747819476588,1.022,651.58,650.56,1.79076906]
[1747819476793,1.022,651.58,650.57,0.62129227]
[1747819476995,1.022,651.58,650.58,0.62129227]
[1747819477194,1.022,651.58,650.59,0.62129227]
[1747819477391,1.022,651.58,650.55,0.59352911]
[1747819477594,1.022,651.58,650.56,0.62126287]
[1747819477899,1.022,651.58,650.57,0.62126287]
[1747819478097,1.022,651.58,650.58,0.62126287]
[1747819478296,1.022,651.58,650.59,0.62126287]
[1747819478497,1.022,651.58,650.6,0.62126287]
[1747819478696,1.022,651.58,650.61,0.62126287]
[1747819478996,1.022,651.58,650.62,0.62126287]
[1747819479197,1.022,651.58,650.57,0.59352911]
[1747819479498,1.022,651.58,650.58,1.78989763]
[1747819479694,1.022,651.58,650.59,0.62115162]
[1747819479896,1.022,651.58,650.6,0.62115162]
[1747819480093,1.022,651.58,650.61,0.62115162]
[1747819480294,1.022,651.58,650.62,0.62111016]
[1747819480498,1.022,651.58,650.58,0.59352911]
[1747819480698,1.022,651.58,650.59,0.62111195]
[1747819480994,1.022,651.58,650.6,0.62111195]
[1747819481195,1.022,651.58,650.61,0.62111195]
[1747819481399,1.022,651.58,650.6,0.59352911]
[1747819481901,1.022,651.58,650.61,0.62109353]
[1747819482101,1.022,651.58,650.6,0.59352911]
[1747819482301,1.022,651.58,650.61,0.62108488]
[1747819482502,1.022,651.58,650.62,0.59352911]
[1747819484403,1.022,651.58,650.45,0.59352911]
[1747819484597,1.022,651.58,650.46,1.78934363]
[1747819484902,1.022,651.58,650.47,0.62101007]
[1747819485103,1.022,651.58,650.48,1.16833356]
[1747819485403,1.022,651.58,650.49,0.62101007]
[1747819485603,1.022,651.58,650.5,0.62098963]
[1747819485799,1.022,651.58,650.48,1.16833356]
[1747819485800,1.022,651.58,650.51,1.78932319]
[1747819486002,1.022,651.58,650.52,0.62098963]
[1747819486200,1.022,651.58,650.53,0.62098963]
[1747819486398,1.022,651.58,650.54,0.62098963]
[1747819486600,1.022,651.58,650.55,1.78932319]
[1747819486804,1.022,651.58,650.56,0.62098963]
[1747819487003,1.022,651.58,650.57,1.78932319]
[1747819487304,1.022,651.58,650.58,0.62098963]
[1747819487503,1.022,651.58,650.59,1.78932319]
[1747819487704,1.022,651.58,650.6,0.62098963]
[1747819487904,1.022,651.58,650.61,0.62098963]
[1747819488106,1.022,651.58,650.62,0.62098963]
[1747819488304,1.022,651.58,650.63,0.62098963]
[1747819488502,1.022,651.58,650.64,0.62098963]
[1747819488704,1.022,651.58,650.65,0.62098963]
[1747819488904,1.022,651.58,650.6,0.59352911]
[1747819489207,1.022,651.58,650.61,1.7884442]
[1747819489405,1.022,651.58,650.62,0.62086984]
[1747819489605,1.022,651.58,650.63,1.7884442]
[1747819489805,1.022,651.58,650.64,0.62086984]
[1747819490006,1.022,651.58,650.65,0.62086984]
[1747819490301,1.022,651.58,650.66,0.62086984]
[1747819490514,1.022,651.58,650.67,0.62086984]
[1747819490806,1.022,651.58,650.66,0.59352911]
[1747819491007,1.022,651.58,650.67,0.62070942]
[1747819491305,1.022,651.58,650.66,0.59352911]
[1747819491707,1.022,651.58,650.5,0.59352911]
[1747819491910,1.022,651.58,650.51,0.62065842]
[1747819492207,1.022,651.58,650.52,0.62065842]
[1747819492407,1.022,651.58,650.53,0.62059604]
[1747819492607,1.022,651.58,650.54,0.62059604]
[1747819492809,1.022,651.58,650.55,1.78751667]
[1747819493002,1.022,651.58,650.56,0.62059604]
[1747819493207,1.022,651.58,650.57,1.16692063]
[1747819493501,1.022,651.58,650.58,0.62059604]
[1747819493702,1.022,651.58,650.59,1.78751667]
[1747819493906,1.022,651.58,650.6,0.62059604]
[1747819494102,1.022,651.58,650.61,0.62059604]
[1747819494307,1.022,651.58,650.62,1.78751667]
[1747819494507,1.022,651.58,650.63,1.21412515]
[1747819494708,1.022,651.58,650.64,0.62059604]
[1747819494905,1.022,651.58,650.63,0.59352911]
[1747819494906,1.022,651.58,650.65,0.62059604]
[1747819495108,1.022,651.58,650.66,0.62059604]
[1747819495310,1.022,651.58,650.63,0.59352911]
[1747819495610,1.022,651.58,650.64,0.6204754]
[1747819495910,1.022,651.58,650.65,1.21400451]
[1747819496104,1.022,651.58,650.66,0.6204754]
[1747819496710,1.022,651.58,650.67,0.59352911]
[1747819498011,1.022,651.58,650.49,0.59352911]
[1747819498210,1.022,651.58,650.5,0.62044506]
[1747819498404,1.022,651.58,650.51,0.62044506]
[1747819498605,1.022,651.58,650.52,0.62044506]
[1747819498805,1.022,651.58,650.53,1.78653827]
[1747819499005,1.022,651.58,650.54,0.62044506]
[1747819499208,1.022,651.58,650.55,0.62044506]
[1747819499408,1.022,651.58,650.56,1.78653827]
[1747819499604,1.022,651.58,650.57,1.21397417]
[1747819499808,1.022,651.58,650.58,1.78653827]
[1747819500013,1.022,651.58,650.59,0.62044506]
[1747819500214,1.022,651.58,650.6,1.78653827]
[1747819500508,1.022,651.58,650.61,0.62044506]
[1747819500713,1.022,651.58,650.62,0.62044506]
[1747819500911,1.022,651.58,650.63,0.62044506]
[1747819501212,1.022,651.58,650.64,0.62044506]
[1747819501513,1.022,651.58,650.65,0.62044506]
[1747819501814,1.022,651.58,650.66,0.62044506]
[1747819502013,1.022,651.58,650.62,0.59352911]
[1747819502209,1.022,651.58,650.63,0.62040071]
[1747819502408,1.022,651.58,650.64,1.21392982]
[1747819502610,1.022,651.58,650.65,0.62040071]
[1747819504112,1.022,651.58,650.66,0.59352911]
[1747819505217,1.022,651.58,650.49,0.59352911]
[1747819505612,1.022,651.58,650.5,1.78631106]
[1747819505913,1.022,651.58,650.51,0.62036155]
[1747819506317,1.022,651.58,650.52,1.16594951]
[1747819506518,1.022,651.58,650.53,0.62036155]
[1747819506713,1.022,651.58,650.54,1.16594951]
[1747819506916,1.022,651.58,650.55,0.62036155]
[1747819507116,1.022,651.58,650.56,0.62043377]
[1747819507312,1.022,651.58,650.57,0.62043377]
[1747819507518,1.022,651.58,650.58,1.16594951]
[1747819507719,1.022,651.58,650.59,0.62043377]
[1747819507917,1.022,651.58,650.58,1.16594951]
[1747819508519,1.022,651.58,650.59,0.59352911]
[1747819509815,1.022,651.58,650.36,0.59352911]
[1747819510019,1.022,651.58,650.37,0.62051129]
[1747819510221,1.022,651.58,650.38,1.78663756]
[1747819510419,1.022,651.58,650.39,0.62051129]
[1747819510620,1.022,651.58,650.4,1.7866446]
[1747819510821,1.022,651.58,650.41,0.62051833]
[1747819511024,1.022,651.58,650.42,1.7866446]
[1747819511323,1.022,651.58,650.43,0.62051833]
[1747819511518,1.022,651.58,650.44,1.16612627]
[1747819511718,1.022,651.58,650.45,0.62051833]
[1747819511916,1.022,651.58,650.46,1.16612627]
[1747819512322,1.022,651.58,650.47,0.62052612]
[1747819512517,1.022,651.58,650.48,0.62052612]
[1747819512716,1.022,651.58,650.49,0.62052612]
[1747819513016,1.022,651.58,650.5,0.62052612]
[1747819513218,1.022,651.58,650.51,0.62052612]
[1747819513414,1.022,651.58,650.49,0.59352911]
[1747819513923,1.2893232,651.58,650.49,0.59352911]
[1747819514316,1.2893232,651.58,650.33,0.6411058]
[1747819515523,1.022,651.58,650.33,0.6411058]
[1747819515724,1.022,651.58,650.08,0.59352911]
[1747819515923,1.022,651.58,650.09,0.61806097]
[1747819516123,1.022,651.58,650.1,1.78367724]
[1747819516321,0.26737557,651.57,650.11,0.61806097]
[1747819516624,0.26737557,651.57,650.12,0.61806097]
[1747819516816,0.26737557,651.57,650.13,1.78367724]
[1747819517018,0.26737557,651.57,650.14,1.78367724]
[1747819517223,0.26737557,651.57,650.15,0.61806097]
[1747819517420,0.26737557,651.57,650.16,1.78367724]
[1747819517616,0.26737557,651.57,650.17,0.61806097]
[1747819517820,0.26737557,651.57,650.16,1.16561627]
[1747819517821,0.26737557,651.57,650.18,0.61806097]
[1747819518024,0.26737557,651.57,650.19,1.21159008]
[1747819518217,0.26737557,651.57,650.19,0.59352911]
[1747819518417,0.26737557,651.57,650.2,0.61729527]
[1747819518617,3.81799869,651.7,650.21,0.61729527]
[1747819518818,3.81799869,651.7,650.19,0.59352911]
[1747819519423,0.26737557,651.69,650.19,0.59352911]
[1747819519623,0.26737557,651.69,649.94,0.59352911]
[1747819519824,0.26737557,651.69,649.95,0.61699911]
[1747819520123,1.59937557,651.69,649.96,1.78111772]
[1747819520323,1.59937557,651.69,649.97,0.61699911]
[1747819520618,1.59937557,651.69,649.98,0.61699911]
[1747819520823,1.59937557,651.69,649.99,0.61699911]
[1747819521023,1.59937557,651.69,650.0,0.61699911]
[1747819521324,1.59937557,651.69,650.01,0.61699911]
[1747819521519,1.59937557,651.69,650.02,1.78111772]
[1747819521722,1.332,651.69,650.03,0.61699911]
[1747819521917,1.332,651.69,650.04,0.61699911]
[1747819522121,1.332,651.69,650.05,1.78111772]
[1747819522321,0.26737249,651.68,650.06,0.61699911]
[1747819522519,0.26737249,651.68,650.07,0.61699911]
[1747819522723,0.26737249,651.68,650.08,1.78111772]
[1747819522921,0.26737249,651.68,650.09,0.61699911]
[1747819523219,0.26737249,651.68,650.1,1.78111772]
[1747819523418,0.26737249,651.68,650.11,0.61699911]
[1747819523624,0.26737249,651.68,650.12,1.78111772]
[1747819523921,0.26737249,651.68,650.13,0.61699911]
[1747819524122,0.26737249,651.68,650.14,1.78111772]
[1747819524321,0.26737249,651.68,650.15,1.21052822]
[1747819524522,0.26737249,651.68,650.16,1.78111772]
[1747819524724,1.332,651.69,650.17,0.61699911]
[1747819524923,1.332,651.69,650.18,0.61699911]
[1747819525122,1.332,651.69,650.19,1.78111772]
[1747819525327,1.332,651.69,650.2,0.61699911]
[1747819525527,0.26733449,651.68,650.21,0.59352911]
[1747819526829,0.26733449,651.68,649.97,0.26733449]
[1747819526830,0.26733449,651.68,649.98,0.59352911]
[1747819527029,0.26733449,651.68,649.99,0.6159488]
[1747819527230,0.26733449,651.68,650.0,0.6159488]
[1747819527432,0.26733449,651.68,650.01,1.77685259]
[1747819527631,0.26733449,651.68,650.02,0.6159488]
[1747819527831,0.26733449,651.68,650.03,0.6159488]
[1747819528032,0.26733449,651.68,650.04,0.6159488]
[1747819528225,0.26733449,651.68,650.05,0.6159488]
[1747819528426,0.26733449,651.68,650.06,0.6159488]
[1747819528629,0.26733449,651.68,650.07,1.77685259]
[1747819528827,0.26733449,651.68,650.08,0.6159488]
[1747819529033,0.26733449,651.68,650.09,0.61583235]
[1747819529332,0.26733449,651.68,650.1,1.77673614]
[1747819529527,0.26733449,651.68,650.11,0.61583235]
[1747819529727,0.26733449,651.68,650.12,0.61583235]
[1747819529930,0.26733449,651.68,650.13,0.61583235]
[1747819530130,0.26733449,651.68,650.14,1.77673614]
[1747819530332,0.26733449,651.68,650.14,1.16090379]
[1747819530634,1.332,651.69,650.15,0.6157377]
[1747819530835,0.2673386,651.67,650.16,0.6157377]
[1747819531035,0.2673386,651.67,650.17,0.6157377]
[1747819531235,0.2673386,651.67,650.12,0.59352911]
[1747819531435,0.2673386,651.67,650.13,0.61568885]
[1747819531636,0.2673386,651.67,650.14,1.77619036]
[1747819531837,0.2673386,651.67,650.15,0.61568885]
[1747819532037,0.2673386,651.67,650.16,1.75403062]
[1747819532238,0.2673386,651.67,650.17,0.61568885]
[1747819532638,0.2673386,651.67,650.16,1.75403062]
[1747819532839,0.2673386,651.67,650.16,0.59352911]
[1747819533440,0.2673386,651.67,650.02,0.59352911]
[1747819533637,1.332,651.69,650.03,0.61562611]
[1747819533842,1.332,651.69,650.04,0.61562611]
[1747819534036,1.332,651.69,650.05,0.61563116]
[1747819534240,1.332,651.69,650.06,0.61563116]
[1747819534437,1.332,651.69,650.02,0.59352911]
[1747819534438,1.332,651.69,650.07,1.77616265]
[1747819534642,1.332,651.69,650.08,2.36969176]
[1747819534843,0.26736222,651.68,650.09,0.61563116]
[1747819535337,0.26736222,651.68,650.1,1.16053149]
[1747819535538,0.26736222,651.68,650.11,0.61563116]
[1747819535836,0.26736222,651.68,650.12,1.77616265]
[1747819536038,0.26736222,651.68,650.13,0.61563116]
[1747819536238,0.26736222,651.68,650.08,0.59352911]
[1747819536442,0.26736222,651.68,650.14,0.59352911]
[1747819536839,0.26736222,651.68,650.15,0.6155163]
[1747819537044,0.26736222,651.68,650.16,0.6155163]
[1747819537239,0.26736222,651.68,650.17,0.6154828]
[1747819537442,0.26736222,651.68,650.14,0.59352911]
[1747819537638,0.26736222,651.68,650.15,0.6154827]
[1747819537838,0.26736222,651.68,650.16,0.6154827]
[1747819538138,0.26736222,651.68,650.01,1.23463491]
[1747819538439,0.26736222,651.68,650.02,1.77564232]
[1747819538638,0.26736222,651.68,650.03,0.61546578]
[1747819538844,0.26736222,651.68,650.04,0.61546578]
[1747819539041,0.26736222,651.68,650.05,1.16017654]
[1747819539245,0.26736222,651.68,650.06,0.61549836]
[1747819539439,0.26736222,651.68,650.07,0.61549836]
[1747819539641,1.332,651.69,650.08,0.61549836]
[1747819539844,1.332,651.69,650.09,0.61549836]
[1747819540047,1.332,651.69,650.1,0.61549836]
[1747819540244,1.332,651.69,650.1,1.20902747]
[1747819540542,1.332,651.69,650.1,0.59352911]
[1747819540849,0.26736941,651.68,650.1,0.59352911]
[1747819541249,0.26736941,651.68,649.92,0.26736941]
[1747819541446,0.26736941,651.68,649.93,0.61537991]
[1747819541641,0.26736941,651.68,649.94,1.77424017]
[1747819541846,0.26736941,651.68,649.95,0.61537991]
[1747819542349,0.26736941,651.68,649.96,1.15886026]
[1747819542650,1.332,651.69,649.97,0.61537991]
[1747819542847,1.332,651.69,649.97,1.77424017]
[1747819543045,1.332,651.69,649.98,0.61537991]
[1747819543251,1.332,651.69,649.99,1.15886026]
[1747819543448,1.332,651.69,650.0,0.61537991]
[1747819543654,1.332,651.69,650.01,1.15886026]
[1747819543852,1.332,651.69,650.02,0.61537991]
[1747819544057,0.26737968,651.68,650.02,1.77424017]
[1747819544256,0.26737968,651.68,650.03,0.61537991]
[1747819544458,0.26737968,651.68,650.04,0.6010013]
[1747819544659,0.26737968,651.68,650.05,1.77424017]
[1747819544957,0.26737968,651.68,650.06,0.61537991]
[1747819545158,0.26737968,651.68,650.07,1.77424017]
[1747819545356,0.26737968,651.68,650.08,0.61537991]
[1747819545558,0.26737968,651.68,650.09,1.77424017]
[1747819545758,1.332,651.69,650.1,1.77424017]
[1747819545960,1.332,651.69,650.1,1.15886026]
[1747819546257,1.332,651.69,650.1,1.75986156]
[1747819546459,1.332,651.69,650.1,0.6010013]
[1747819547059,0.2673653,651.68,650.1,0.6010013]
[1747819547761,0.2673653,651.68,650.11,0.6010013]
[1747819548663,3.79697804,651.71,650.11,0.6010013]
[1747819549557,3.79697804,651.71,650.12,0.6010013]
[1747819549863,0.26737249,651.7,650.12,0.6010013]
[1747819551062,0.26737249,651.7,650.13,0.6010013]
[1747819551865,1.32237249,651.7,650.13,0.6010013]
[1747819552765,1.32237249,651.7,650.14,0.6010013]
[1747819554062,1.32237249,651.7,650.15,0.6010013]
[1747819554662,1.055,651.7,650.15,0.6010013]
[1747819555167,1.055,651.7,650.16,0.6159005]
[1747819555367,1.055,651.7,650.15,0.6010013]
[1747819555567,1.055,651.7,650.16,0.61584819]
[1747819555867,1.055,651.7,650.15,0.6010013]
[1747819555868,0.26735092,651.69,650.15,0.6010013]
[1747819556062,0.26735092,651.69,650.17,0.6010013]
[1747819557469,0.26735092,651.69,650.18,0.6010013]
[1747819557668,1.055,651.7,650.18,0.6010013]
[1747819558570,0.26734784,651.69,650.18,0.6010013]
[1747819558970,3.79697804,651.62,650.19,0.6010013]
[1747819560166,3.79697804,651.62,650.2,0.6010013]
[1747819561567,3.79697804,651.62,650.21,0.6010013]
[1747819561872,0.267354,651.61,650.21,0.6010013]
[1747819563073,0.267354,651.61,650.22,0.6010013]
[1747819563572,3.79697804,651.62,650.22,0.6010013]
[1747819564473,3.79697804,651.62,650.23,0.6010013]
[1747819564872,0.26735092,651.61,650.23,0.6010013]
[1747819566074,0.26735092,651.61,650.02,0.6010013]
[1747819566272,0.26735092,651.61,650.03,0.6176402]
[1747819566571,0.26735092,651.61,650.04,1.78190636]
[1747819566765,3.79697804,651.62,650.05,0.6176402]
[1747819566969,3.79697804,651.62,650.06,1.16426616]
[1747819567171,3.79697804,651.62,650.07,0.6176402]
[1747819567372,3.79697804,651.62,650.08,1.78215479]
[1747819567678,0.26736735,651.61,650.09,1.21888993]
[1747819567873,0.26736735,651.61,650.1,1.78215479]
[1747819568073,0.26736735,651.61,650.11,0.61788863]
[1747819568272,0.26736735,651.61,650.12,1.16426616]
[1747819568469,0.26736735,651.61,650.13,0.61788863]
[1747819568773,0.26736735,651.61,650.14,1.16426616]
[1747819568969,0.26736735,651.61,650.15,0.61788863]
[1747819569174,0.26736735,651.61,650.16,0.6010013]
[1747819569468,0.26736735,651.61,650.17,1.78215479]
[1747819569670,3.79697804,651.62,650.18,0.61788863]
[1747819569874,0.26737352,651.6,650.17,1.16426616]
[1747819570075,0.26737352,651.6,650.16,0.6010013]
[1747819570781,0.26737352,651.6,650.05,0.6010013]
[1747819570976,0.26737352,651.6,650.06,0.6185189]
[1747819571176,0.26737352,651.6,650.07,1.78452719]
[1747819571377,0.26737352,651.6,650.08,0.6185189]
[1747819571778,0.26737352,651.6,650.09,1.16600829]
[1747819571978,0.26737352,651.6,650.1,0.6185189]
[1747819572280,0.26737352,651.6,650.11,1.16600829]
[1747819572574,0.26737352,651.6,650.12,0.6185189]
[1747819572778,3.79697804,651.62,650.12,0.6185189]
[1747819572982,0.26738071,651.59,650.12,0.6185189]
[1747819573178,0.26738071,651.59,650.13,1.16600829]
[1747819573374,3.79697804,651.52,650.14,0.6185189]
[1747819573698,3.79697804,651.52,650.15,1.16600829]
[1747819573880,3.79697804,651.52,650.16,0.6185189]
[1747819574183,3.79697804,651.52,650.17,1.16600829]
[1747819574475,3.79697804,651.52,650.18,0.6185189]
[1747819574980,3.79697804,651.52,650.19,1.2195202]
[1747819575182,3.79697804,651.52,650.2,0.6185189]
[1747819575881,0.26738276,651.51,650.2,0.6185189]
[1747819576582,0.26738276,651.51,650.21,0.6010013]
[1747819577182,0.26738276,651.51,650.22,0.61906358]
[1747819577378,0.26738276,651.51,650.23,0.61904485]
[1747819577585,0.26738276,651.51,650.21,0.6010013]
[1747819577780,0.26738276,651.51,650.22,0.61904485]
[1747819577984,0.26738276,651.51,650.02,0.6010013]
[1747819578179,0.26738276,651.51,650.03,0.6190454]
[1747819578381,0.26738276,651.51,650.04,1.78590747]
[1747819578581,0.26738276,651.51,650.05,0.6190454]
[1747819578781,3.79697804,651.52,650.06,0.6190454]
[1747819578986,3.79697804,651.52,650.07,1.78590747]
[1747819579285,3.79697804,651.52,650.08,0.6190454]
[1747819579583,3.79697804,651.52,650.09,1.78590747]
[1747819579783,3.79697804,651.52,650.1,1.78590747]
[1747819579984,0.26739509,651.51,650.11,0.6190454]
[1747819580178,0.26739509,651.51,650.12,0.6190454]
[1747819580384,0.26739509,651.51,650.13,2.38690877]
[1747819580585,0.26739509,651.51,650.14,0.6190454]
[1747819580784,0.26739509,651.51,650.14,1.78590747]
[1747819580984,0.26739509,651.51,650.15,0.6190454]
[1747819581386,0.26739509,651.51,650.16,1.16686207]
[1747819581680,0.26739509,651.51,650.17,0.6190454]
[1747819582090,0.26739509,651.51,650.18,1.76786337]
[1747819582285,0.26739509,651.51,650.19,0.6190454]
[1747819582485,0.26739509,651.51,650.2,1.16686207]
[1747819582685,1.001,651.5,650.21,0.61905518]
[1747819582881,1.001,651.5,650.22,0.61905518]
[1747819583080,1.001,651.5,650.18,0.6010013]
[1747819583386,1.001,651.5,650.23,0.6010013]
[1747819585185,1.001,651.5,650.03,0.6010013]
[1747819585386,1.001,651.5,650.04,0.61903485]
[1747819585586,1.001,651.5,650.05,1.78622101]
[1747819585885,0.26740125,651.49,650.06,0.61903485]
[1747819586081,0.26740125,651.49,650.03,0.6010013]
[1747819586082,0.26740125,651.49,650.07,1.78622101]
[1747819586285,0.26740125,651.49,650.08,0.61903485]
[1747819586686,0.26740125,651.49,650.09,1.16718616]
[1747819586888,0.26740125,651.49,650.1,0.61903485]
[1747819587086,0.26740125,651.49,650.09,1.16718616]
[1747819587087,0.26740125,651.49,650.11,0.61903485]
[1747819587387,0.26740125,651.49,650.12,1.78622101]
[1747819587581,0.26740125,651.49,650.13,0.61903485]
[1747819587785,3.79697804,651.47,650.14,0.61903485]
[1747819587984,3.79697804,651.47,650.15,0.61903485]
[1747819588186,3.79697804,651.47,650.13,1.76818746]
[1747819588187,3.79697804,651.47,650.16,0.61903485]
[1747819588387,3.79697804,651.47,650.17,0.61903485]
[1747819588586,3.79697804,651.47,650.18,1.78622101]
[1747819588783,3.79697804,651.47,650.19,0.61903485]
[1747819588985,0.26739098,651.46,650.2,0.61903485]
[1747819589288,0.26739098,651.46,650.13,0.6010013]
[1747819589483,0.26739098,651.46,650.14,0.61902062]
[1747819589683,0.26739098,651.46,650.15,1.78663824]
[1747819589888,0.26739098,651.46,650.16,0.61902062]
[1747819590083,0.26739098,651.46,650.17,1.16761762]